[Event "*** SCC Grand Prix: Titled Tuesday Blitz"]
[Site "Chess.com"]
[Date "2020.10.06"]
[Round "1"]
[White "xamax2000"]
[Black "Fischerev7"]
[Result "1-0"]
[WhiteElo "2667"]
[BlackElo "2344"]
[TimeControl "180+1"]
[EndTime "10:06:53 PDT"]
[Termination "xamax2000 won on time"]

1. d4 {[%clk 0:03:00]} 1... Nf6 {[%clk 0:02:58.7]} 2. c4 {[%clk 0:03:00.3]} 2...
e6 {[%clk 0:02:58.4]} 3. g3 {[%clk 0:03:00.2]} 3... Bb4+ {[%clk 0:02:57.9]} 4.
Bd2 {[%clk 0:03:00]} 4... a5 {[%clk 0:02:57.9]} 5. Bg2 {[%clk 0:03:00]} 5... O-O
{[%clk 0:02:57.9]} 6. e4 {[%clk 0:02:58.9]} 6... d5 {[%clk 0:02:51.9]} 7. e5
{[%clk 0:02:56.9]} 7... Ne8 {[%clk 0:02:48.5]} 8. cxd5 {[%clk 0:02:56.1]} 8...
exd5 {[%clk 0:02:46.3]} 9. Nc3 {[%clk 0:02:55.6]} 9... c6 {[%clk 0:02:42]} 10.
Nge2 {[%clk 0:02:52.7]} 10... f6 {[%clk 0:02:41.4]} 11. f4 {[%clk 0:02:46.5]}
11... fxe5 {[%clk 0:02:34.7]} 12. dxe5 {[%clk 0:02:47.4]} 12... Bc5 {[%clk
0:02:22.3]} 13. Qc2 {[%clk 0:02:43.5]} 13... Bf5 {[%clk 0:02:16.7]} 14. Qb3
{[%clk 0:02:39.3]} 14... Qb6 {[%clk 0:02:02.7]} 15. Na4 {[%clk 0:02:23.1]} 15...
Qxb3 {[%clk 0:02:01.5]} 16. axb3 {[%clk 0:02:22]} 16... Bb4 {[%clk 0:01:39.3]}
17. Nd4 {[%clk 0:02:07]} 17... Bd3 {[%clk 0:01:31.8]} 18. Nb6 {[%clk 0:01:48.4]}
18... Ra6 {[%clk 0:01:23.7]} 19. Bxb4 {[%clk 0:01:41.4]} 19... axb4 {[%clk
0:01:19]} 20. Kd2 {[%clk 0:01:35.7]} 20... Rxb6 {[%clk 0:01:01.4]} 21. Kxd3
{[%clk 0:01:35.3]} 21... Nd7 {[%clk 0:01:00.3]} 22. Rhc1 {[%clk 0:01:29.2]}
22... Nc7 {[%clk 0:00:56.6]} 23. Ra5 {[%clk 0:01:27.6]} 23... Kf7 {[%clk
0:00:36.9]} 24. Bh3 {[%clk 0:01:26.1]} 24... Ke7 {[%clk 0:00:31.6]} 25. Nf5+
{[%clk 0:01:19]} 25... Rxf5 {[%clk 0:00:27.9]} 26. Bxf5 {[%clk 0:01:19.6]} 26...
g6 {[%clk 0:00:27.6]} 27. Bxd7 {[%clk 0:01:18.8]} 27... Kxd7 {[%clk 0:00:28.5]}
28. g4 {[%clk 0:01:14.4]} 28... Ke6 {[%clk 0:00:28.1]} 29. Kd4 {[%clk
0:01:00.9]} 29... Ra6 {[%clk 0:00:13.4]} 30. Rxa6 {[%clk 0:01:00.1]} 30... Nxa6
{[%clk 0:00:14.3]} 31. h4 {[%clk 0:00:57.4]} 31... c5+ {[%clk 0:00:12.5]} 32.
Rxc5 {[%clk 0:00:56.1]} 32... Nxc5 {[%clk 0:00:10.2]} 33. Kxc5 {[%clk 0:00:57]}
33... h5 {[%clk 0:00:07.5]} 34. gxh5 {[%clk 0:00:56.8]} 34... gxh5 {[%clk
0:00:07.7]} 35. Kxb4 {[%clk 0:00:56.9]} 35... Kf5 {[%clk 0:00:02.9]} 36. Kc5
{[%clk 0:00:56.1]} 36... Ke4 {[%clk 0:00:02.5]} 37. e6 {[%clk 0:00:56]} 37... d4
{[%clk 0:00:02.5]} 38. e7 {[%clk 0:00:56.3]} 38... d3 {[%clk 0:00:02.4]} 39.
e8=Q+ {[%clk 0:00:57.2]} 39... Kxf4 {[%clk 0:00:02.8]} 40. Qxh5 {[%clk 0:00:57]}
40... d2 {[%clk 0:00:02.7]} 41. Qd1 {[%clk 0:00:57.9]} 1-0

[Event "*** SCC Grand Prix: Titled Tuesday Blitz"]
[Site "Chess.com"]
[Date "2020.10.06"]
[Round "1"]
[White "Zq1"]
[Black "Chamal_Gedgafov"]
[Result "1-0"]
[WhiteElo "2521"]
[BlackElo "2146"]
[TimeControl "180+1"]
[EndTime "10:06:56 PDT"]
[Termination "Zq1 won by resignation"]

1. d4 {[%clk 0:03:00.6]} 1... e6 {[%clk 0:02:55.6]} 2. c4 {[%clk 0:03:00.2]}
2... Nf6 {[%clk 0:02:53.6]} 3. Nc3 {[%clk 0:02:59.4]} 3... Bb4 {[%clk
0:02:51.8]} 4. e3 {[%clk 0:02:59]} 4... c5 {[%clk 0:02:50.4]} 5. Bd3 {[%clk
0:02:57.7]} 5... O-O {[%clk 0:02:49]} 6. Ne2 {[%clk 0:02:57.2]} 6... d5 {[%clk
0:02:47.6]} 7. cxd5 {[%clk 0:02:55.4]} 7... Nxd5 {[%clk 0:02:44]} 8. a3 {[%clk
0:02:51.8]} 8... Ba5 {[%clk 0:02:39.1]} 9. O-O {[%clk 0:02:48.1]} 9... cxd4
{[%clk 0:02:36.1]} 10. exd4 {[%clk 0:02:47.7]} 10... Nxc3 {[%clk 0:02:30.8]} 11.
bxc3 {[%clk 0:02:47.1]} 11... Nc6 {[%clk 0:02:26.5]} 12. Bc2 {[%clk 0:02:46.1]}
12... Qh4 {[%clk 0:02:10.9]} 13. Qd3 {[%clk 0:02:42.4]} 13... e5 {[%clk
0:01:59.1]} 14. d5 {[%clk 0:02:17.5]} 14... Ne7 {[%clk 0:01:54.3]} 15. Ng3
{[%clk 0:02:14.3]} 15... Ng6 {[%clk 0:01:47]} 16. c4 {[%clk 0:01:56.2]} 16...
Bb6 {[%clk 0:01:40.2]} 17. Be3 {[%clk 0:01:51.1]} 17... Bxe3 {[%clk 0:01:29.4]}
18. fxe3 {[%clk 0:01:50.4]} 18... b6 {[%clk 0:01:27]} 19. Rf2 {[%clk 0:01:42.3]}
19... Bd7 {[%clk 0:01:26.1]} 20. Raf1 {[%clk 0:01:36.3]} 20... Rac8 {[%clk
0:01:23.9]} 21. Bb3 {[%clk 0:01:29.4]} 21... Qe7 {[%clk 0:01:02.5]} 22. d6
{[%clk 0:01:25.4]} 22... Qe8 {[%clk 0:00:48.7]} 23. c5 {[%clk 0:01:24.1]} 23...
Be6 {[%clk 0:00:43.2]} 24. Bxe6 {[%clk 0:01:19.5]} 24... Qxe6 {[%clk 0:00:42.3]}
25. Ne4 {[%clk 0:01:18.5]} 25... bxc5 {[%clk 0:00:38.3]} 26. Ng5 {[%clk
0:01:16.8]} 26... Qd7 {[%clk 0:00:36.9]} 27. Nxf7 {[%clk 0:01:13.5]} 27... Rxf7
{[%clk 0:00:26.7]} 28. Rxf7 {[%clk 0:01:12.5]} 28... Qxf7 {[%clk 0:00:27.6]} 29.
Rxf7 {[%clk 0:01:12.2]} 29... Kxf7 {[%clk 0:00:28.3]} 30. Qd5+ {[%clk
0:01:11.1]} 30... Kf8 {[%clk 0:00:27.5]} 31. h4 {[%clk 0:01:04.3]} 31... Rd8
{[%clk 0:00:18.6]} 32. h5 {[%clk 0:01:03.7]} 32... Nh8 {[%clk 0:00:16.9]} 33.
Qxc5 {[%clk 0:00:58.5]} 33... Nf7 {[%clk 0:00:15.2]} 34. Qxa7 {[%clk 0:00:57.7]}
34... Rxd6 {[%clk 0:00:13.8]} 35. Qc5 {[%clk 0:00:56.7]} 35... Ke7 {[%clk
0:00:13.4]} 36. a4 {[%clk 0:00:56.1]} 36... Ke6 {[%clk 0:00:14.3]} 37. a5 {[%clk
0:00:55.8]} 37... Rd5 {[%clk 0:00:13.7]} 38. Qc8+ {[%clk 0:00:52.4]} 38... Kf6
{[%clk 0:00:12.4]} 39. a6 {[%clk 0:00:50.8]} 39... Nd6 {[%clk 0:00:12.7]} 40.
Qc6 {[%clk 0:00:48.8]} 40... Rd1+ {[%clk 0:00:11.7]} 41. Kh2 {[%clk 0:00:47.8]}
41... Ke6 {[%clk 0:00:11.9]} 42. a7 {[%clk 0:00:47.5]} 42... Ra1 {[%clk
0:00:12]} 43. a8=Q {[%clk 0:00:47.1]} 43... Rxa8 {[%clk 0:00:12.9]} 44. Qxa8
{[%clk 0:00:46.8]} 44... Kf5 {[%clk 0:00:13.2]} 45. Qg8 {[%clk 0:00:45.1]} 1-0

[Event "*** SCC Grand Prix: Titled Tuesday Blitz"]
[Site "Chess.com"]
[Date "2020.10.06"]
[Round "1"]
[White "dyziotomi99"]
[Black "Duhless"]
[Result "0-1"]
[WhiteElo "2466"]
[BlackElo "2966"]
[TimeControl "180+1"]
[EndTime "10:06:59 PDT"]
[Termination "Duhless won by resignation"]

1. d4 {[%clk 0:03:00.9]} 1... Nf6 {[%clk 0:02:59]} 2. c4 {[%clk 0:03:00.7]} 2...
e6 {[%clk 0:02:59]} 3. Nc3 {[%clk 0:02:57.1]} 3... Bb4 {[%clk 0:02:58.3]} 4. f3
{[%clk 0:02:55.4]} 4... d5 {[%clk 0:02:57.4]} 5. a3 {[%clk 0:02:55.2]} 5... Bd6
{[%clk 0:02:57.3]} 6. Bg5 {[%clk 0:02:46.6]} 6... c5 {[%clk 0:02:42.4]} 7. e3
{[%clk 0:02:39.8]} 7... cxd4 {[%clk 0:02:34.1]} 8. exd4 {[%clk 0:02:38.9]} 8...
dxc4 {[%clk 0:02:34.4]} 9. Bxc4 {[%clk 0:02:36.3]} 9... O-O {[%clk 0:02:34]} 10.
Nge2 {[%clk 0:02:34]} 10... Nc6 {[%clk 0:02:33.7]} 11. O-O {[%clk 0:02:28.5]}
11... Be7 {[%clk 0:02:31.9]} 12. Qd2 {[%clk 0:02:14]} 12... b6 {[%clk
0:02:24.1]} 13. Rad1 {[%clk 0:02:11.8]} 13... Bb7 {[%clk 0:02:23.3]} 14. Be3
{[%clk 0:01:54.9]} 14... Rc8 {[%clk 0:02:19.3]} 15. Bf2 {[%clk 0:01:52.8]} 15...
Na5 {[%clk 0:02:14.6]} 16. Ba2 {[%clk 0:01:51.5]} 16... Nc4 {[%clk 0:02:14.5]}
17. Bxc4 {[%clk 0:01:43.8]} 17... Rxc4 {[%clk 0:02:13.8]} 18. Ng3 {[%clk
0:01:43.2]} 18... Nd5 {[%clk 0:02:10]} 19. Nge4 {[%clk 0:01:40.2]} 19... Qd7
{[%clk 0:02:08.2]} 20. Qd3 {[%clk 0:01:31.9]} 20... Rfc8 {[%clk 0:02:07.3]} 21.
Kh1 {[%clk 0:01:26.1]} 21... h6 {[%clk 0:02:04.9]} 22. Bg3 {[%clk 0:01:23.7]}
22... Nxc3 {[%clk 0:02:01.2]} 23. bxc3 {[%clk 0:01:17.1]} 23... Bxa3 {[%clk
0:01:45.5]} 24. Ra1 {[%clk 0:01:09.4]} 24... Bxe4 {[%clk 0:01:32.2]} 25. fxe4
{[%clk 0:01:04.4]} 25... Rxc3 {[%clk 0:01:32]} 26. Qd2 {[%clk 0:01:00.4]} 26...
a5 {[%clk 0:01:30.3]} 27. d5 {[%clk 0:00:57.3]} 27... exd5 {[%clk 0:01:29.9]}
28. exd5 {[%clk 0:00:57.8]} 28... Bd6 {[%clk 0:01:28.9]} 29. Be1 {[%clk
0:00:54.3]} 29... R3c4 {[%clk 0:01:23.2]} 30. Qf2 {[%clk 0:00:53.5]} 30... Bc5
{[%clk 0:01:17.5]} 31. Qf3 {[%clk 0:00:54]} 31... Rd4 {[%clk 0:01:15.1]} 32. Bf2
{[%clk 0:00:45.6]} 32... Rxd5 {[%clk 0:01:13.1]} 33. Bxc5 {[%clk 0:00:45.9]}
33... Rcxc5 {[%clk 0:01:10.3]} 34. Rae1 {[%clk 0:00:45.6]} 34... Rc8 {[%clk
0:01:06.9]} 35. h3 {[%clk 0:00:42.1]} 35... a4 {[%clk 0:01:05.9]} 36. Qa3 {[%clk
0:00:42.1]} 36... Rdc5 {[%clk 0:00:59.1]} 37. Re3 {[%clk 0:00:36.7]} 37... b5
{[%clk 0:00:55.5]} 38. Ref3 {[%clk 0:00:36.9]} 38... f6 {[%clk 0:00:52.8]} 39.
Rg3 {[%clk 0:00:36.6]} 39... Qf7 {[%clk 0:00:49.6]} 40. Qe3 {[%clk 0:00:35.9]}
40... Kh8 {[%clk 0:00:45.6]} 41. Kh2 {[%clk 0:00:31.1]} 41... Rd5 {[%clk
0:00:44.1]} 42. Qe4 {[%clk 0:00:30.2]} 42... Rcd8 {[%clk 0:00:43.5]} 43. Qb4
{[%clk 0:00:29.5]} 43... Qc7 {[%clk 0:00:42.1]} 44. Rf3 {[%clk 0:00:23.8]} 44...
Rg5 {[%clk 0:00:40.4]} 45. Kh1 {[%clk 0:00:23.8]} 45... Rxg3 {[%clk 0:00:38.9]}
46. Rxg3 {[%clk 0:00:24.2]} 46... Qxg3 {[%clk 0:00:37.7]} 0-1

[Event "*** SCC Grand Prix: Titled Tuesday Blitz"]
[Site "Chess.com"]
[Date "2020.10.06"]
[Round "1"]
[White "serena-maria"]
[Black "doons21"]
[Result "0-1"]
[WhiteElo "2290"]
[BlackElo "2604"]
[TimeControl "180+1"]
[EndTime "10:06:59 PDT"]
[Termination "doons21 won by resignation"]

1. Nf3 {[%clk 0:03:00.8]} 1... Nf6 {[%clk 0:02:58.8]} 2. g3 {[%clk 0:03:01.1]}
2... g6 {[%clk 0:02:59.2]} 3. Bg2 {[%clk 0:03:01.7]} 3... Bg7 {[%clk 0:02:59.8]}
4. O-O {[%clk 0:03:02.4]} 4... O-O {[%clk 0:03:00.5]} 5. c4 {[%clk 0:03:03]}
5... d6 {[%clk 0:03:01]} 6. Nc3 {[%clk 0:03:03]} 6... c6 {[%clk 0:03:01.4]} 7.
Rb1 {[%clk 0:03:02.7]} 7... a5 {[%clk 0:03:00.8]} 8. a3 {[%clk 0:03:02.3]} 8...
d5 {[%clk 0:02:59.2]} 9. d3 {[%clk 0:02:44.9]} 9... dxc4 {[%clk 0:02:46.7]} 10.
dxc4 {[%clk 0:02:45.8]} 10... Bf5 {[%clk 0:02:46.5]} 11. Ra1 {[%clk 0:02:43.8]}
11... Ne4 {[%clk 0:02:35.5]} 12. Nxe4 {[%clk 0:02:24.1]} 12... Bxe4 {[%clk
0:02:36.4]} 13. Qb3 {[%clk 0:02:24.1]} 13... Qc8 {[%clk 0:02:34]} 14. Be3 {[%clk
0:02:13.9]} 14... Nd7 {[%clk 0:02:23]} 15. Rad1 {[%clk 0:02:08]} 15... a4 {[%clk
0:02:07.1]} 16. Qa2 {[%clk 0:02:06.6]} 16... Qc7 {[%clk 0:01:54.2]} 17. Rd2
{[%clk 0:01:55.8]} 17... Nf6 {[%clk 0:01:16]} 18. Rfd1 {[%clk 0:01:28.8]} 18...
Qa5 {[%clk 0:01:14.8]} 19. c5 {[%clk 0:00:57.8]} 19... Nd5 {[%clk 0:01:13.7]}
20. Bd4 {[%clk 0:00:53.4]} 20... f6 {[%clk 0:01:13.2]} 21. Qc4 {[%clk
0:00:42.7]} 21... Kh8 {[%clk 0:01:10.9]} 22. Bc3 {[%clk 0:00:29.9]} 22... Nxc3
{[%clk 0:01:08.6]} 23. bxc3 {[%clk 0:00:30.4]} 23... Bd5 {[%clk 0:01:05.5]} 24.
Qb4 {[%clk 0:00:30.5]} 24... Qxb4 {[%clk 0:00:53.3]} 25. cxb4 {[%clk 0:00:31.4]}
25... e5 {[%clk 0:00:53.8]} 26. Ne1 {[%clk 0:00:18.5]} 26... Bb3 {[%clk
0:00:52.6]} 27. Rc1 {[%clk 0:00:17.6]} 27... Rfd8 {[%clk 0:00:51.5]} 28. Nd3
{[%clk 0:00:16.2]} 28... f5 {[%clk 0:00:48.9]} 29. e4 {[%clk 0:00:15.3]} 29...
Bh6 {[%clk 0:00:48.6]} 30. f4 {[%clk 0:00:14.4]} 30... exf4 {[%clk 0:00:49.1]}
31. gxf4 {[%clk 0:00:14.2]} 31... Bxf4 {[%clk 0:00:49.6]} 32. Nxf4 {[%clk
0:00:14.3]} 32... Rxd2 {[%clk 0:00:50.5]} 33. exf5 {[%clk 0:00:14.7]} 33... gxf5
{[%clk 0:00:49.7]} 34. Re1 {[%clk 0:00:14.8]} 34... Rg8 {[%clk 0:00:49.5]} 35.
Re7 {[%clk 0:00:14]} 35... Bd5 {[%clk 0:00:46.7]} 36. Nxd5 {[%clk 0:00:10.2]}
36... cxd5 {[%clk 0:00:45.3]} 37. Kh1 {[%clk 0:00:06.8]} 37... Rgxg2 {[%clk
0:00:38.6]} 38. h4 {[%clk 0:00:06.9]} 38... Rge2 {[%clk 0:00:38.1]} 0-1

[Event "*** SCC Grand Prix: Titled Tuesday Blitz"]
[Site "Chess.com"]
[Date "2020.10.06"]
[Round "1"]
[White "andresgv36"]
[Black "bgfbfbgfbgfgf"]
[Result "0-1"]
[WhiteElo "2409"]
[BlackElo "2801"]
[TimeControl "180+1"]
[EndTime "10:07:00 PDT"]
[Termination "bgfbfbgfbgfgf won by checkmate"]

1. d4 {[%clk 0:02:49]} 1... Nf6 {[%clk 0:02:23.2]} 2. Bf4 {[%clk 0:02:44]} 2...
g6 {[%clk 0:02:22.3]} 3. Nc3 {[%clk 0:02:42.4]} 3... d5 {[%clk 0:02:21.4]} 4. e3
{[%clk 0:02:41.7]} 4... Bg7 {[%clk 0:02:20.9]} 5. h4 {[%clk 0:02:40.5]} 5... c5
{[%clk 0:02:16.3]} 6. Nb5 {[%clk 0:02:32.1]} 6... Na6 {[%clk 0:02:13.7]} 7. c3
{[%clk 0:02:32.3]} 7... Bf5 {[%clk 0:01:58.7]} 8. Nf3 {[%clk 0:02:20.9]} 8...
O-O {[%clk 0:01:54]} 9. Ne5 {[%clk 0:02:11.5]} 9... h5 {[%clk 0:01:46.8]} 10. a4
{[%clk 0:02:00.7]} 10... Nd7 {[%clk 0:01:37.6]} 11. Bd3 {[%clk 0:01:17.3]} 11...
Nxe5 {[%clk 0:01:20.4]} 12. Bxe5 {[%clk 0:01:10.5]} 12... Bxe5 {[%clk 0:00:33]}
13. dxe5 {[%clk 0:01:06.3]} 13... Bxd3 {[%clk 0:00:29.6]} 14. Qxd3 {[%clk
0:01:03.9]} 14... e6 {[%clk 0:00:27.5]} 15. Ke2 {[%clk 0:00:15.1]} 15... Kg7
{[%clk 0:00:24.7]} 16. g4 {[%clk 0:00:14.1]} 16... hxg4 {[%clk 0:00:22.4]} 17.
Rag1 {[%clk 0:00:14.1]} 17... Rh8 {[%clk 0:00:19.2]} 18. Rxg4 {[%clk 0:00:14]}
18... Rh5 {[%clk 0:00:18.9]} 19. f4 {[%clk 0:00:12.6]} 19... Qe7 {[%clk
0:00:16.3]} 20. Nd6 {[%clk 0:00:12.5]} 20... Rah8 {[%clk 0:00:15.3]} 21. Rhg1
{[%clk 0:00:11.2]} 21... Rxh4 {[%clk 0:00:13]} 22. Rxg6+ {[%clk 0:00:10.7]}
22... fxg6 {[%clk 0:00:10.7]} 23. Qxg6+ {[%clk 0:00:04]} 23... Kf8 {[%clk
0:00:11]} 24. f5 {[%clk 0:00:04]} 24... Rh2+ {[%clk 0:00:11.2]} 25. Kd3 {[%clk
0:00:03.8]} 25... c4+ {[%clk 0:00:11.6]} 26. Kd4 {[%clk 0:00:03.1]} 26... Rd2#
{[%clk 0:00:12.1]} 0-1

[Event "*** SCC Grand Prix: Titled Tuesday Blitz"]
[Site "Chess.com"]
[Date "2020.10.06"]
[Round "1"]
[White "Chesstrainer1"]
[Black "Gabrielian_Artur"]
[Result "0-1"]
[WhiteElo "2386"]
[BlackElo "2745"]
[TimeControl "180+1"]
[EndTime "10:07:01 PDT"]
[Termination "Gabrielian_Artur won on time"]

1. Nf3 {[%clk 0:03:00.9]} 1... Nf6 {[%clk 0:02:59.4]} 2. c4 {[%clk 0:03:00.9]}
2... g6 {[%clk 0:02:59.2]} 3. Nc3 {[%clk 0:03:01.1]} 3... Bg7 {[%clk 0:02:58.7]}
4. e4 {[%clk 0:03:01.2]} 4... O-O {[%clk 0:02:58.1]} 5. d4 {[%clk 0:03:01.7]}
5... d6 {[%clk 0:02:58.2]} 6. Be2 {[%clk 0:03:02.2]} 6... e5 {[%clk 0:02:58.2]}
7. d5 {[%clk 0:03:02.8]} 7... Na6 {[%clk 0:02:56.4]} 8. Nd2 {[%clk 0:03:00.4]}
8... Nd7 {[%clk 0:02:39.7]} 9. h4 {[%clk 0:02:58.6]} 9... f5 {[%clk 0:02:16.8]}
10. h5 {[%clk 0:02:57.8]} 10... f4 {[%clk 0:02:16.9]} 11. hxg6 {[%clk
0:02:41.3]} 11... hxg6 {[%clk 0:02:16.4]} 12. Bg4 {[%clk 0:02:42.2]} 12... Nf6
{[%clk 0:02:16.5]} 13. Bxc8 {[%clk 0:02:37.3]} 13... Qxc8 {[%clk 0:02:16.5]} 14.
Nf3 {[%clk 0:02:24.8]} 14... Qg4 {[%clk 0:02:08]} 15. Qe2 {[%clk 0:02:16.3]}
15... c6 {[%clk 0:01:44.7]} 16. Bd2 {[%clk 0:02:06.7]} 16... cxd5 {[%clk
0:01:44.5]} 17. cxd5 {[%clk 0:02:06.2]} 17... Rac8 {[%clk 0:01:42.6]} 18. Rh4
{[%clk 0:01:51.4]} 18... Qd7 {[%clk 0:01:19.9]} 19. Ng5 {[%clk 0:01:44.5]} 19...
Nc5 {[%clk 0:01:08.3]} 20. b4 {[%clk 0:00:54.1]} 20... Na4 {[%clk 0:01:07]} 21.
Nxa4 {[%clk 0:00:46]} 21... Qxa4 {[%clk 0:01:07]} 22. Ne6 {[%clk 0:00:46.9]}
22... Rfe8 {[%clk 0:01:06.7]} 23. g3 {[%clk 0:00:09.7]} 23... Qc2 {[%clk
0:01:00.2]} 24. f3 {[%clk 0:00:09.8]} 24... fxg3 {[%clk 0:00:51.7]} 25. Nxg7
{[%clk 0:00:07.5]} 25... Kxg7 {[%clk 0:00:51.3]} 26. Kf1 {[%clk 0:00:03.4]}
26... Nh5 {[%clk 0:00:45.9]} 27. Rxh5 {[%clk 0:00:02.6]} 27... gxh5 {[%clk
0:00:45.6]} 28. Qe3 {[%clk 0:00:03.2]} 28... Kf7 {[%clk 0:00:28.6]} 29. Rc1
{[%clk 0:00:01.9]} 29... g2+ {[%clk 0:00:26]} 30. Kg1 {[%clk 0:00:01.1]} 30...
Qb2 {[%clk 0:00:24.9]} 0-1

[Event "*** SCC Grand Prix: Titled Tuesday Blitz"]
[Site "Chess.com"]
[Date "2020.10.06"]
[Round "1"]
[White "Gusarov91"]
[Black "GM4life"]
[Result "1-0"]
[WhiteElo "2579"]
[BlackElo "2271"]
[TimeControl "180+1"]
[EndTime "10:07:04 PDT"]
[Termination "Gusarov91 won by resignation"]

1. d4 {[%clk 0:02:54.1]} 1... Nf6 {[%clk 0:02:59.6]} 2. Nf3 {[%clk 0:02:53.8]}
2... d5 {[%clk 0:02:58.8]} 3. c4 {[%clk 0:02:54]} 3... e6 {[%clk 0:02:58.7]} 4.
g3 {[%clk 0:02:54.2]} 4... Be7 {[%clk 0:02:59]} 5. Bg2 {[%clk 0:02:54.6]} 5...
O-O {[%clk 0:02:59.9]} 6. O-O {[%clk 0:02:55.1]} 6... dxc4 {[%clk 0:03:00.5]} 7.
Na3 {[%clk 0:02:54.4]} 7... Bxa3 {[%clk 0:02:59.6]} 8. bxa3 {[%clk 0:02:54.4]}
8... c5 {[%clk 0:02:23.4]} 9. dxc5 {[%clk 0:02:54.1]} 9... Na6 {[%clk
0:02:22.6]} 10. Qa4 {[%clk 0:02:48.6]} 10... Qd5 {[%clk 0:02:17.8]} 11. c6
{[%clk 0:02:36]} 11... Nc5 {[%clk 0:02:06.7]} 12. Qb4 {[%clk 0:02:28.4]} 12...
a5 {[%clk 0:02:05.9]} 13. Qb5 {[%clk 0:02:07]} 13... bxc6 {[%clk 0:02:03.9]} 14.
Qb2 {[%clk 0:02:06.9]} 14... Ba6 {[%clk 0:01:48.7]} 15. Be3 {[%clk 0:02:05.2]}
15... Nce4 {[%clk 0:01:47.7]} 16. Nd4 {[%clk 0:02:03.1]} 16... c3 {[%clk
0:01:47.3]} 17. Qc2 {[%clk 0:02:01.8]} 17... c5 {[%clk 0:01:46.8]} 18. Nb3
{[%clk 0:01:59.2]} 18... Rfc8 {[%clk 0:01:20.5]} 19. Nxc5 {[%clk 0:01:52.3]}
19... Rxc5 {[%clk 0:00:48.5]} 20. Bxc5 {[%clk 0:01:52]} 20... Rc8 {[%clk
0:00:39.6]} 21. Be3 {[%clk 0:01:50.1]} 21... Qc4 {[%clk 0:00:38.1]} 22. Rfc1
{[%clk 0:01:44.7]} 22... h6 {[%clk 0:00:23]} 23. Rab1 {[%clk 0:01:38.1]} 23...
Rd8 {[%clk 0:00:22.8]} 24. Rd1 {[%clk 0:01:34.2]} 24... Nd2 {[%clk 0:00:15.5]}
25. Bxd2 {[%clk 0:01:32.3]} 25... cxd2 {[%clk 0:00:15.7]} 26. Rxd2 {[%clk
0:01:31.6]} 26... Rxd2 {[%clk 0:00:11.6]} 27. Qxd2 {[%clk 0:01:31.4]} 27... Qxe2
{[%clk 0:00:12.5]} 28. Qxe2 {[%clk 0:01:27.7]} 28... Bxe2 {[%clk 0:00:13.4]} 29.
Rb8+ {[%clk 0:01:27.4]} 29... Kh7 {[%clk 0:00:12.2]} 30. Ra8 {[%clk 0:01:27.3]}
30... Bc4 {[%clk 0:00:13.1]} 31. Rxa5 {[%clk 0:01:26.9]} 31... Bxa2 {[%clk
0:00:13.7]} 32. Ra7 {[%clk 0:01:26.6]} 32... Kg6 {[%clk 0:00:12.7]} 33. a4
{[%clk 0:01:26.8]} 33... Bc4 {[%clk 0:00:12.6]} 34. a5 {[%clk 0:01:26.8]} 34...
Nd5 {[%clk 0:00:12.8]} 35. Bf1 {[%clk 0:01:25.4]} 35... Bb3 {[%clk 0:00:11.5]}
36. a6 {[%clk 0:01:24.9]} 36... Nb4 {[%clk 0:00:11.7]} 37. Rb7 {[%clk
0:01:24.4]} 37... Nxa6 {[%clk 0:00:11.8]} 38. Bd3+ {[%clk 0:01:24.6]} 38... f5
{[%clk 0:00:10.6]} 39. Bxa6 {[%clk 0:01:24.5]} 39... Bd5 {[%clk 0:00:10.1]} 40.
Rb6 {[%clk 0:01:23.9]} 40... Kf6 {[%clk 0:00:11]} 41. Bb7 {[%clk 0:01:23.8]}
41... Ba2 {[%clk 0:00:10.4]} 42. f4 {[%clk 0:01:23.5]} 42... g5 {[%clk
0:00:09.1]} 43. Kf2 {[%clk 0:01:23.7]} 43... Bc4 {[%clk 0:00:07.6]} 44. Ke3
{[%clk 0:01:23.6]} 44... Ke7 {[%clk 0:00:07.8]} 45. Bf3 {[%clk 0:01:22.7]} 45...
Ba2 {[%clk 0:00:08.7]} 46. Ra6 {[%clk 0:01:22.2]} 46... Bc4 {[%clk 0:00:08]} 47.
Rc6 {[%clk 0:01:20.8]} 47... Bb3 {[%clk 0:00:07]} 48. Kd4 {[%clk 0:01:20.5]}
48... Ba2 {[%clk 0:00:06.8]} 49. Ke5 {[%clk 0:01:20.7]} 49... Kf7 {[%clk
0:00:06.8]} 50. Rc7+ {[%clk 0:01:20.6]} 50... Kg6 {[%clk 0:00:07]} 51. h4 {[%clk
0:01:20.5]} 51... g4 {[%clk 0:00:07]} 52. Bc6 {[%clk 0:01:19.6]} 52... h5 {[%clk
0:00:06.4]} 53. Be8+ {[%clk 0:01:19.3]} 53... Kh6 {[%clk 0:00:06.6]} 54. Kf6
{[%clk 0:01:16.5]} 54... Bb1 {[%clk 0:00:06.6]} 55. Rf7 {[%clk 0:01:15.3]} 55...
e5 {[%clk 0:00:06.8]} 56. Rf8 {[%clk 0:01:15.6]} 56... Kh7 {[%clk 0:00:05.4]}
57. Bg6+ {[%clk 0:01:15.8]} 1-0

[Event "*** SCC Grand Prix: Titled Tuesday Blitz"]
[Site "Chess.com"]
[Date "2020.10.06"]
[Round "1"]
[White "UmarovSabir"]
[Black "ENajer77"]
[Result "0-1"]
[WhiteElo "2370"]
[BlackElo "2709"]
[TimeControl "180+1"]
[EndTime "10:07:07 PDT"]
[Termination "ENajer77 won on time"]

1. e4 {[%clk 0:02:58.4]} 1... c6 {[%clk 0:02:58.2]} 2. d4 {[%clk 0:02:56.6]}
2... d5 {[%clk 0:02:56.3]} 3. Bd3 {[%clk 0:02:55.4]} 3... dxe4 {[%clk
0:02:53.3]} 4. Bxe4 {[%clk 0:02:54]} 4... Nf6 {[%clk 0:02:53.8]} 5. Bf3 {[%clk
0:02:53.3]} 5... g6 {[%clk 0:02:43.8]} 6. Ne2 {[%clk 0:02:52.3]} 6... Bg7 {[%clk
0:02:44.3]} 7. O-O {[%clk 0:02:50.7]} 7... O-O {[%clk 0:02:44.6]} 8. Nd2 {[%clk
0:02:43.7]} 8... Nbd7 {[%clk 0:02:10.5]} 9. Nc4 {[%clk 0:02:34.1]} 9... Nb6
{[%clk 0:02:10.5]} 10. Ne5 {[%clk 0:02:29.5]} 10... Nfd7 {[%clk 0:02:05.9]} 11.
Ng4 {[%clk 0:02:03.5]} 11... h5 {[%clk 0:02:00.8]} 12. Ne3 {[%clk 0:01:49.1]}
12... e5 {[%clk 0:02:00.2]} 13. d5 {[%clk 0:01:33.5]} 13... Nf6 {[%clk
0:01:59.8]} 14. Nc3 {[%clk 0:01:24]} 14... Bd7 {[%clk 0:01:47.6]} 15. dxc6
{[%clk 0:01:21.9]} 15... Bxc6 {[%clk 0:01:46.7]} 16. Bxc6 {[%clk 0:01:21.2]}
16... bxc6 {[%clk 0:01:47.2]} 17. Qe2 {[%clk 0:01:17.8]} 17... Nbd5 {[%clk
0:01:43.5]} 18. Bd2 {[%clk 0:01:14.9]} 18... Nf4 {[%clk 0:01:42.3]} 19. Qe1
{[%clk 0:01:10.8]} 19... Qd7 {[%clk 0:01:16.4]} 20. Rd1 {[%clk 0:01:07.6]} 20...
Qe6 {[%clk 0:01:16.6]} 21. b3 {[%clk 0:01:02.1]} 21... Rfe8 {[%clk 0:01:09.6]}
22. Nc4 {[%clk 0:01:01.1]} 22... Rad8 {[%clk 0:01:09]} 23. Bxf4 {[%clk
0:00:51.6]} 23... exf4 {[%clk 0:01:09]} 24. Qxe6 {[%clk 0:00:49.5]} 24... fxe6
{[%clk 0:01:08.1]} 25. Rxd8 {[%clk 0:00:19.1]} 25... Rxd8 {[%clk 0:01:07.3]} 26.
Ne5 {[%clk 0:00:13.6]} 26... Rd2 {[%clk 0:01:00.4]} 27. Na4 {[%clk 0:00:04.7]}
27... Ne4 {[%clk 0:00:48.9]} 28. Nxg6 {[%clk 0:00:03.4]} 28... Bd4 {[%clk
0:00:47.9]} 29. Nxf4 {[%clk 0:00:02.2]} 29... Nxf2 {[%clk 0:00:45.9]} 30. Nxe6
{[%clk 0:00:02.1]} 30... Be3 {[%clk 0:00:42.4]} 31. h3 {[%clk 0:00:01.3]} 31...
Nxh3+ {[%clk 0:00:28]} 32. Kh2 {[%clk 0:00:01.3]} 32... Nf2 {[%clk 0:00:28.9]}
33. Re1 {[%clk 0:00:01.2]} 33... Rxc2 {[%clk 0:00:28]} 0-1